bitfinex-derivatives/quotes_ETHF0:USTF0_20241228
["timestamp","ask_amount","ask_price","bid_price","bid_amount"]
[1735350256196,3.2078,3337.5,3336.7,3.2078]
[1735350256401,0.30011,3336.9,3336.7,3.2078]
[1735350256894,0.30011,3337.0,3336.7,3.2078]
[1735350258197,3.2078,3337.1,3336.7,3.2078]
[1735350258497,0.30011,3336.9,3336.7,3.2078]
[1735350259894,3.2078,3337.1,3336.7,3.2078]
[1735350259895,0.30012,3336.8,3336.7,3.2078]
[1735350260396,3.2078,3337.1,3336.7,3.2078]
[1735350261002,3.2078,3337.1,3337.0,0.3001]
[1735350261598,3.2078,3337.1,3336.8,0.6773]
[1735350261805,3.2078,3337.1,3336.9,0.30011]
[1735350262298,3.2078,3337.1,3336.8,0.6773]
[1735350262507,0.3001,3337.0,3336.8,0.6773]
[1735350262803,3.2078,3337.1,3336.8,0.97741]
[1735350262997,3.2078,3337.5,3336.8,0.6773]
[1735350263296,3.2078,3337.5,3336.8,2.97443755]
[1735350263500,0.30007,3337.4,3337.1,0.30009]
[1735350264300,0.30007,3337.4,3337.0,0.3001]
[1735350264603,0.30007,3337.4,3337.1,0.30009]
[1735350265001,3.2078,3337.5,3336.8,1.8843]
[1735350265197,0.30011,3336.9,3336.8,1.8843]
[1735350265495,3.2078,3337.1,3336.3,1.8322]
[1735350265496,0.30014,3336.6,3336.3,1.8322]
[1735350265899,0.30014,3336.6,3336.3,2.13236]
[1735350267200,3.2078,3336.7,3336.1,2.14718]
[1735350267201,0.30016,3336.4,3336.1,2.14718]
[1735350267899,0.30015,3336.5,3336.2,0.30017]
[1735350268400,0.30014,3336.6,3336.3,0.30016]
[1735350270206,0.30014,3336.6,3336.4,0.30015]
[1735350270506,3.2078,3336.7,3336.1,1.847]
[1735350270707,3.50793,3336.7,3336.5,0.30014]
[1735350273406,3.2078,3336.7,3336.5,0.30014]
[1735350273810,3.2078,3336.7,3336.6,0.653]
[1735350274702,0.30012,3336.8,3336.6,0.95313]
[1735350275704,0.658,3337.0,3336.6,0.653]
[1735350275908,0.30013,3336.7,3336.6,0.653]
[1735350277618,0.658,3337.0,3336.6,0.95314]
[1735350277807,0.30011,3336.9,3336.6,0.653]
[1735350278110,0.30011,3336.9,3336.7,0.30013]
[1735350278912,0.658,3337.0,3336.6,0.653]
[1735350279115,0.30012,3336.8,3336.6,0.95313]
[1735350280002,0.30012,3336.8,3336.7,0.30013]
[1735350281911,3.2078,3337.1,3336.6,0.653]
[1735350282217,3.2078,3337.1,3337.0,0.3001]
[1735350282410,3.50785,3337.6,3336.7,3.8582]
[1735350282623,3.2078,3337.6,3337.5,0.30006]
[1735350284210,3.50785,3337.6,3337.5,0.30006]
[1735350284512,5.50493755,3337.6,3337.1,4.4158]
[1735350284721,0.30011,3337.0,3336.8,1.3216]
[1735350285013,6.25506755,3337.6,3336.8,0.6634]
[1735350285014,0.30011,3336.9,3336.8,0.6634]
[1735350285218,0.75015,3337.5,3336.8,0.6634]
[1735350285416,0.30011,3337.0,3336.8,0.96351]
[1735350285810,0.30011,3336.9,3336.8,0.96351]
[1735350286010,0.30011,3336.9,3336.8,0.6634]
[1735350287118,0.75015,3337.5,3336.8,0.96352]
[1735350287119,0.3001,3337.0,3336.8,0.96352]
[1735350288322,5.50493755,3337.6,3336.8,0.6634]
[1735350288516,0.3001,3337.1,3336.9,0.30011]
[1735350288709,5.50493755,3337.6,3336.8,0.6634]
[1735350289019,0.30007,3337.4,3336.9,0.30011]
[1735350289222,0.30008,3337.2,3337.0,0.30009]
[1735350289518,0.30008,3337.2,3337.1,0.30009]
[1735350290128,0.30008,3337.2,3337.0,0.30009]
[1735350291020,0.30008,3337.2,3337.1,0.30009]
[1735350292820,0.30008,3337.3,3337.2,0.30008]
[1735350293413,3.2078,3337.6,3336.8,0.6634]
[1735350293621,0.30009,3337.2,3337.1,0.30009]
[1735350295922,3.2078,3337.6,3336.8,0.6634]
[1735350296115,0.30007,3337.4,3337.2,0.30008]
[1735350296621,3.2078,3337.6,3337.2,0.30008]
[1735350296820,0.30007,3337.3,3337.2,0.30008]
[1735350299215,0.30007,3337.4,3337.1,0.30009]
[1735350299417,0.30007,3337.4,3337.2,0.30008]
[1735350299824,0.30007,3337.4,3337.1,0.30009]
[1735350300126,0.30007,3337.4,3337.2,0.30008]
[1735350300830,0.30007,3337.3,3337.2,0.30008]
[1735350301829,3.2078,3337.6,3337.0,0.706]
[1735350302128,3.2078,3337.6,3337.2,0.30007]
[1735350302923,0.30007,3337.3,3337.2,0.30007]
[1735350304130,0.6635,3337.9,3337.8,0.30003]
[1735350304439,7.0366999,3338.1,3338.0,0.30001]
[1735350304624,0.6918,3338.2,3337.7,1.205]
[1735350304922,0.6918,3338.2,3338.1,0.3]
[1735350304923,0.99179,3338.2,3338.1,0.3]
[1735350305133,0.99179,3338.2,3338.0,0.30001]
[1735350305427,0.6918,3338.2,3337.8,1.3444]
[1735350305729,0.9918,3338.2,3338.0,0.30001]
[1735350306118,0.6457,3338.4,3337.8,1.3444]
[1735350306325,0.94568,3338.4,3337.8,1.3444]
[1735350306523,0.6457,3338.4,3337.8,1.3444]
[1735350306830,0.30001,3338.1,3337.9,0.30001]
[1735350307831,0.6457,3338.4,3337.8,1.3444]
[1735350308032,0.29999,3338.2,3338.1,0.29999]
[1735350308733,0.94568,3338.4,3338.1,0.29999]
[1735350308936,3.8996,3338.5,3337.9,2.29713755]
[1735350308937,3.50777,3338.5,3337.9,2.29713755]
[1735350309228,3.2078,3338.5,3338.4,0.29997]
[1735350311535,3.2078,3338.5,3337.8,1.3444]
[1735350311735,0.30002,3338.0,3337.8,1.3444]
[1735350311934,0.6735,3337.9,3337.8,1.64443]
[1735350312327,3.2078,3338.1,3337.8,1.3444]
[1735350312532,0.29999,3338.3,3338.1,0.3]
[1735350312936,0.3,3338.1,3337.9,0.30002]
[1735350313135,0.30002,3338.0,3337.8,1.64442]
[1735350313535,3.2078,3338.2,3337.7,0.30003]
[1735350313536,0.30002,3337.9,3337.7,0.30003]
[1735350313734,0.95082,3337.9,3337.7,0.30003]
[1735350314138,0.95082,3337.9,3337.6,1.205]
[1735350314340,0.95082,3337.9,3337.8,0.30003]
[1735350314540,0.6508,3337.9,3337.8,0.30003]
[1735350314742,0.30001,3338.0,3337.8,0.30003]
[1735350315040,1.3286,3338.1,3337.9,0.30002]
[1735350315338,0.30001,3338.0,3337.9,0.30002]
[1735350315743,1.3286,3338.1,3337.6,3.50213755]
[1735350315931,1.3286,3338.1,3337.4,1.3596]
[1735350315932,3.2078,3337.8,3336.1,9.42479982]
[1735350316137,0.3001,3337.0,3336.8,0.30012]
[1735350316336,0.30011,3337.0,3336.7,2.59725755]
[1735350316542,0.30011,3337.0,3336.8,0.30012]
[1735350317156,0.30009,3337.1,3336.9,0.30011]
[1735350319238,1.3328,3337.3,3336.7,2.29713755]
[1735350319438,0.6735,3337.3,3337.2,0.30008]
[1735350321251,0.6735,3337.3,3337.1,0.6847]
[1735350321556,0.6735,3337.3,3337.1,0.98479]
[1735350321759,0.6735,3337.3,3337.2,0.30008]
[1735350322257,3.8813,3337.3,3337.2,0.30008]
[1735350322458,4.18137,3337.3,3337.1,0.98479]
[1735350322959,3.8813,3337.3,3337.2,0.30008]
[1735350323757,0.6735,3337.3,3337.2,0.30008]
[1735350324159,3.88,3337.7,3337.1,0.6847]
[1735350324361,3.2078,3337.7,3337.6,0.30005]
[1735350324557,7.0366999,3337.9,3337.6,2.29713755]
[1735350324853,13.76284985,3338.2,3337.6,2.29713755]
[1735350325047,13.76284985,3338.2,3337.7,0.6881]
[1735350325253,13.76284985,3338.2,3338.1,0.3]
[1735350325961,10.55504985,3338.2,3338.1,0.3]
[1735350326161,3.2078,3338.9,3338.0,1.3378]
[1735350326355,0.29995,3338.7,3338.4,0.29997]
[1735350326951,0.29995,3338.7,3338.5,0.29996]
[1735350327161,0.29994,3338.8,3338.2,2.29713755]
[1735350327358,0.29994,3338.8,3338.3,1.8931]
[1735350327659,3.2078,3338.9,3338.3,1.8931]
[1735350328860,0.29994,3338.8,3338.6,0.29995]
[1735350329055,3.2078,3338.9,3338.5,2.29713755]
[1735350329259,7.0366999,3339.7,3338.8,0.29994]
[1735350329260,0.96982,3339.1,3338.8,0.29994]
[1735350329459,0.29992,3339.0,3338.5,2.29713755]
[1735350329766,0.29992,3339.0,3338.7,0.29994]
[1735350330069,0.6699,3339.1,3338.5,2.29713755]
[1735350330363,0.29997,3338.5,3338.3,2.19308]
[1735350330551,3.2078,3338.8,3338.3,2.19308]
[1735350330552,0.29996,3338.6,3338.3,2.19308]
[1735350330960,0.7035,3338.5,3338.4,0.29997]
[1735350332964,0.96855,3338.7,3338.5,0.29996]
[1735350333466,0.6686,3338.7,3338.5,0.29996]
[1735350333958,3.50774,3338.8,3338.5,0.29996]
[1735350334163,0.29992,3339.1,3338.5,2.29713755]
[1735350334365,0.29992,3339.1,3338.9,0.29993]
[1735350334763,0.29992,3339.1,3338.8,0.29994]
[1735350336169,0.29992,3339.1,3338.5,2.29713755]
[1735350336464,0.29992,3339.1,3338.8,0.29993]
[1735350336762,0.29992,3339.1,3338.5,2.29713755]
[1735350336960,0.29992,3339.1,3338.9,0.29993]
[1735350337264,3.2078,3339.2,3339.1,0.29991]
[1735350337565,3.2078,3339.2,3339.1,2.59704755]
[1735350337757,0.29986,3339.7,3339.4,0.29988]
[1735350337962,0.29986,3339.7,3339.5,0.29987]
[1735350338168,0.29986,3339.7,3339.4,0.29988]
[1735350338366,0.29986,3339.7,3339.2,1.4057]
[1735350338966,0.29986,3339.7,3339.4,0.29988]
[1735350339166,0.29987,3339.6,3339.4,0.29988]
[1735350340165,3.8495,3339.9,3339.2,1.4057]
[1735350340365,0.29987,3339.7,3339.2,1.4057]
[1735350340676,0.29987,3339.7,3339.5,0.29987]
[1735350341564,0.29987,3339.7,3338.8,3.8654]
[1735350341565,3.8495,3339.9,3338.8,6.16253755]
[1735350341763,3.2078,3339.5,3339.0,0.29992]
[1735350341962,0.29991,3339.1,3338.9,1.903]
[1735350342164,0.29991,3339.1,3338.9,0.99793]
[1735350342568,0.29991,3339.1,3338.9,0.698]
[1735350342770,0.29991,3339.1,3339.0,0.29992]
[1735350343069,0.6403,3339.3,3338.9,0.698]
[1735350343466,0.6403,3339.3,3339.2,0.2999]
[1735350343667,0.6403,3339.3,3338.9,0.698]
[1735350343967,0.29991,3339.2,3339.0,0.29992]
[1735350344366,3.2078,3339.5,3338.9,0.698]
[1735350344573,0.6458,3339.8,3339.1,2.29713755]
[1735350344768,0.29986,3339.7,3339.5,0.29988]
[1735350345470,0.6458,3339.8,3339.1,2.29713755]
[1735350345769,0.94565,3339.8,3339.6,0.29987]
[1735350345964,0.29987,3339.6,3339.4,0.29988]
[1735350346163,0.29987,3339.6,3339.5,0.29988]
[1735350346367,3.2078,3339.9,3339.5,0.29988]
[1735350346571,3.2078,3339.9,3339.6,0.6595]
[1735350346872,0.29985,3339.8,3339.6,0.95936]
[1735350348970,0.29986,3339.7,3339.6,0.95936]
[1735350350277,0.29985,3339.8,3339.6,0.6595]
[1735350350571,0.29985,3339.8,3339.6,0.95936]
[1735350351273,3.2078,3339.9,3339.5,0.6941]
[1735350351471,0.29987,3339.6,3339.5,0.6941]
[1735350351969,0.29987,3339.6,3339.4,0.29988]
[1735350352170,0.96067,3339.6,3339.4,0.29988]
[1735350356381,0.6608,3339.6,3339.4,0.29988]
[1735350356581,0.29988,3339.5,3339.4,0.29988]
[1735350356779,0.6608,3339.6,3339.4,0.29988]
[1735350356982,0.29987,3339.6,3339.5,0.29988]
[1735350359072,3.2078,3339.9,3339.4,2.29713755]
[1735350359279,3.2078,3339.9,3339.8,0.29985]
[1735350359478,0.98041,3340.3,3340.1,0.29982]
[1735350359678,0.6806,3340.3,3340.0,2.29713755]
[1735350359880,0.9804,3340.3,3340.2,0.29981]
[1735350360380,0.9804,3340.3,3340.1,0.97382]
[1735350360786,0.6806,3340.3,3340.1,0.674]
[1735350360989,0.29981,3340.2,3340.1,0.674]
[1735350361285,0.29981,3340.2,3340.1,0.97382]
[1735350361480,0.6806,3340.3,3340.1,0.674]
[1735350361785,3.2078,3340.4,3340.3,0.2998]
[1735350361985,0.29977,3340.7,3340.4,0.29979]
[1735350362185,0.29977,3340.7,3340.5,1.00038]
[1735350362477,0.98835,3340.9,3340.7,0.29977]
[1735350363273,0.98835,3340.9,3340.5,0.7006]
[1735350363274,0.6886,3340.9,3340.5,0.7006]
[1735350363479,0.29977,3340.7,3340.5,1.00038]
[1735350363678,0.98835,3340.9,3340.7,0.29976]
[1735350363881,0.6886,3340.9,3340.8,0.29976]
[1735350364283,0.98835,3340.9,3340.7,0.29976]
[1735350364880,0.6886,3340.9,3340.6,3.50113755]
[1735350365086,3.50753,3341.2,3341.0,0.29974]
[1735350365578,3.2078,3341.2,3340.9,2.29713755]
[1735350365774,3.2078,3341.2,3341.1,0.29973]
[1735350366178,3.2078,3341.2,3341.1,0.94583]
[1735350368488,0.2997,3341.5,3341.2,0.29972]
[1735350368686,0.2997,3341.5,3341.2,2.29713755]
[1735350368985,0.6682,3341.7,3341.2,2.29713755]
[1735350369189,0.29972,3341.2,3341.1,0.6461]
[1735350369484,3.2078,3341.4,3341.0,0.6743]
[1735350369686,0.29973,3341.2,3341.0,0.6743]
[1735350370884,0.29973,3341.2,3341.0,0.97404]
[1735350372188,3.2078,3341.4,3341.3,0.29971]
[1735350373186,3.2078,3341.4,3341.3,0.94131]
[1735350373490,3.2078,3341.4,3341.3,0.29971]
[1735350373691,3.2078,3341.4,3341.2,2.29713755]
[1735350373887,3.2078,3341.4,3341.2,2.59685755]
[1735350374083,3.2078,3341.4,3341.3,0.29971]
[1735350374287,0.96788,3341.7,3341.5,0.29969]
[1735350374785,0.96788,3341.7,3341.4,0.2997]
[1735350374992,0.96788,3341.7,3341.3,0.6835]
[1735350375292,0.96788,3341.7,3341.5,0.29969]
[1735350375585,0.6682,3341.7,3341.3,0.6835]
[1735350375788,0.29972,3341.3,3341.0,0.97404]
[1735350375988,0.6447,3341.2,3341.1,0.29973]
[1735350376186,0.94442,3341.2,3341.0,0.97404]
[1735350376388,1.3106,3341.2,3341.0,0.6743]
[1735350376687,3.2078,3341.1,3340.6,2.29713755]
[1735350376984,0.29981,3340.3,3340.1,0.97602]
[1735350377185,0.29982,3340.1,3340.0,2.29713755]
[1735350377388,0.29984,3339.9,3339.8,1.204]
[1735350377783,0.29984,3340.0,3339.8,1.50384]
[1735350377987,0.29983,3340.0,3339.8,1.204]
[1735350378889,0.29987,3339.6,3339.4,2.97333755]
[1735350379093,0.29986,3339.7,3339.4,3.27321755]
[1735350379594,0.29987,3339.6,3339.4,3.27321755]
[1735350380486,3.2078,3339.8,3339.4,3.27321755]
[1735350380796,0.6964,3340.1,3339.7,2.29713755]
[1735350380991,0.29983,3340.0,3339.8,0.29985]
[1735350385191,0.29983,3340.0,3339.7,2.29713755]
[1735350385192,0.29983,3340.0,3339.7,2.59698755]
[1735350385396,0.29984,3339.9,3339.7,2.29713755]
[1735350385797,0.6964,3340.1,3339.4,2.97333755]
[1735350386091,3.2078,3339.8,3339.4,2.29713755]
[1735350386297,0.29986,3339.7,3339.4,2.59701755]
[1735350386500,0.29986,3339.7,3339.5,0.29988]
[1735350386800,0.29986,3339.7,3339.4,2.59701755]
[1735350387302,0.29986,3339.7,3339.5,0.29987]
[1735350388399,0.29986,3339.7,3339.4,2.59701755]
[1735350389015,0.29982,3340.2,3339.9,0.29983]
[1735350389304,0.652,3340.5,3340.3,0.2998]
[1735350389600,0.652,3340.5,3340.4,0.29979]
[1735350390199,0.652,3340.5,3340.0,1.204]
[1735350390399,0.29982,3340.1,3340.0,1.204]
[1735350392411,0.29985,3339.8,3339.5,2.96593755]
[1735350392613,0.29985,3339.8,3339.6,0.29987]
[1735350392911,0.29986,3339.7,3339.5,3.26580755]
[1735350394612,0.29986,3339.7,3339.6,0.29987]
[1735350394809,1.3249,3339.8,3339.2,4.18613755]
[1735350395010,1.9761,3339.8,3339.2,4.89483755]
[1735350395205,0.29986,3339.7,3339.5,0.29988]
[1735350395415,0.29986,3339.7,3339.6,0.29987]
[1735350396813,0.29986,3339.7,3339.4,0.29988]
[1735350397014,1.9761,3339.8,3339.2,4.89483755]
[1735350397217,0.29986,3339.7,3339.5,0.29987]
[1735350397608,0.29986,3339.7,3339.6,0.29987]
[1735350397812,2.27595,3339.8,3339.6,0.29987]
[1735350398716,0.29986,3339.7,3339.5,0.29987]
[1735350399409,0.29987,3339.6,3339.4,0.29988]
[1735350399615,3.2078,3339.5,3339.4,0.29988]
[1735350402323,0.29986,3339.7,3339.5,0.29987]
[1735350404609,3.2078,3339.9,3339.8,0.29985]
[1735350404814,3.2078,3339.9,3339.8,2.59698755]
[1735350405618,3.2078,3340.6,3340.5,0.29979]
[1735350406516,2.0062,3341.2,3340.3,2.29713755]
[1735350406517,3.2078,3341.0,3340.8,0.29976]
[1735350406713,3.50755,3341.0,3340.8,0.29976]
[1735350406915,3.2078,3341.0,3340.7,2.29713755]
[1735350407113,3.50755,3341.0,3340.8,0.29976]
[1735350407322,3.2078,3341.0,3340.9,0.29975]
[1735350409617,3.2078,3341.0,3340.8,2.512]
[1735350409824,0.29975,3340.9,3340.8,1.204]
[1735350410023,1.61805,3340.9,3340.8,1.204]
[1735350410225,0.29978,3340.6,3340.4,2.59692755]
[1735350410527,1.3183,3340.9,3340.4,2.29713755]
[1735350410725,0.29977,3340.7,3340.4,2.29713755]
[1735350410927,0.29977,3340.7,3340.4,2.59692755]
[1735350411432,0.29979,3340.5,3340.4,2.29713755]
[1735350412029,0.29979,3340.5,3340.3,0.2998]
[1735350412825,3.50758,3340.6,3340.4,0.29979]
[1735350413125,0.29977,3340.7,3340.5,0.29979]
[1735350413728,0.29978,3340.6,3340.4,0.29979]
[1735350414527,8.2078,3340.6,3339.5,7.0259099]
[1735350414728,0.29986,3339.8,3339.6,0.29986]
[1735350414930,0.7021,3339.7,3339.6,0.29987]
[1735350417225,3.2078,3339.8,3339.7,0.29986]
[1735350418531,3.2078,3339.8,3339.4,0.6834]
[1735350418734,3.50765,3339.8,3339.6,0.29986]
[1735350420130,3.2078,3339.8,3339.7,0.29986]
[1735350422232,3.2078,3339.8,3339.6,0.29986]
[1735350422233,3.50765,3339.8,3339.6,0.29986]
[1735350422628,3.50765,3339.8,3339.4,0.6834]
[1735350422834,3.50765,3339.8,3339.6,0.29986]
[1735350423034,3.2078,3339.8,3339.7,0.29986]
[1735350428739,0.6712,3340.0,3339.5,3.00013755]
[1735350428938,0.6712,3340.0,3339.9,0.29984]
[1735350430036,0.694,3340.1,3339.5,3.74981755]
[1735350430239,3.2078,3340.3,3339.8,2.29713755]
[1735350430538,3.2078,3340.3,3340.2,0.29981]
[1735350430736,0.29978,3340.6,3340.1,2.29713755]
[1735350430938,0.29978,3340.6,3340.4,0.29979]
[1735350431439,3.50757,3340.7,3340.6,0.29978]
[1735350431639,0.29978,3340.6,3340.5,0.29978]
[1735350431836,3.2078,3340.7,3340.2,0.6611]
[1735350432138,3.2078,3340.7,3340.6,0.29978]
[1735350432333,7.0366999,3341.2,3341.1,0.29973]
[1735350433135,3.2078,3341.3,3341.2,0.29972]
[1735350434133,3.2078,3341.3,3341.0,2.29713755]
[1735350434333,3.50751,3341.3,3341.1,0.29972]
[1735350434737,3.2078,3341.3,3340.8,1.8696]
[1735350434930,3.2078,3340.9,3340.3,4.72877235]
[1735350435134,0.29979,3340.4,3340.3,4.72877235]
[1735350435340,3.2078,3340.5,3340.2,4.72877235]
[1735350435537,0.2998,3340.3,3340.2,4.72877235]
[1735350436840,0.2998,3340.3,3340.1,1.50282]
[1735350437335,0.7085,3340.2,3340.1,1.50282]
[1735350438643,3.2078,3340.5,3340.1,1.203]
[1735350438843,0.6869,3340.7,3340.1,1.203]
[1735350439043,0.6869,3340.7,3340.2,0.29981]
[1735350439345,3.2078,3340.5,3340.1,1.50282]
[1735350439540,0.29981,3340.2,3340.1,1.203]
[1735350440039,3.2078,3340.5,3339.6,2.29713755]
[1735350440345,3.9073,3340.1,3339.4,1.3775]
[1735350440641,0.29985,3339.8,3339.6,0.29986]
[1735350440842,0.7104,3340.0,3339.4,1.3775]
[1735350441043,0.29984,3339.9,3339.8,0.29985]
[1735350441245,0.7104,3340.0,3339.6,2.29713755]
[1735350441444,0.29985,3339.8,3339.6,2.59699755]
[1735350441745,0.29984,3339.9,3339.6,2.59699755]
[1735350441945,0.29986,3339.8,3339.6,0.29986]
[1735350442544,0.29986,3339.7,3339.5,0.29987]
[1735350443645,0.7104,3340.0,3339.4,1.3775]
[1735350443947,0.7104,3340.0,3339.9,2.59697755]
[1735350445047,0.7104,3340.0,3339.9,0.29984]
[1735350446741,3.2078,3340.1,3339.9,2.29713755]
[1735350447047,3.2078,3340.1,3340.0,0.97063]
[1735350447245,3.2078,3340.1,3340.0,1.64803]
[1735350448046,3.50762,3340.1,3340.0,1.3482]
[1735350448241,3.2078,3340.1,3340.0,1.3482]
[1735350448445,3.2078,3340.1,3340.0,1.64803]
[1735350449847,0.29981,3340.3,3340.1,0.29982]
[1735350450048,3.2078,3340.5,3340.0,1.3482]
[1735350450251,3.2078,3340.5,3340.4,0.29979]
[1735350451341,0.6433,3340.8,3340.7,0.29977]
[1735350451549,3.2078,3340.9,3340.8,0.29976]
[1735350451751,0.669,3341.2,3341.1,0.29973]
[1735350452145,3.50752,3341.3,3340.7,1.3544]
[1735350452343,3.2078,3341.3,3341.2,0.29972]
[1735350452550,3.50751,3341.3,3341.1,0.29973]
[1735350452852,3.2078,3341.3,3341.2,0.29972]
[1735350453245,7.0366999,3341.4,3341.2,2.29713755]
[1735350453445,3.2078,3341.7,3341.2,2.29713755]
[1735350453446,3.2078,3341.7,3341.6,0.29969]
[1735350453646,0.6997,3342.0,3341.8,0.29967]
[1735350454247,0.6997,3342.0,3341.6,0.6865]
[1735350454549,0.6997,3342.0,3341.8,0.29967]
[1735350454743,0.99935,3342.0,3341.8,0.29967]
[1735350454944,0.29969,3341.7,3341.4,0.2997]
[1735350455158,0.2997,3341.5,3341.3,1.00451]
[1735350456045,3.2078,3341.7,3341.3,0.7048]
[1735350456252,0.29967,3341.8,3341.6,0.29969]
[1735350457152,0.29967,3341.8,3341.5,0.29969]
[1735350457653,0.6454,3341.9,3341.5,2.29713755]
[1735350457853,0.94506,3341.9,3341.7,0.29967]
[1735350458247,0.6454,3341.9,3341.7,0.29967]
[1735350459048,0.6454,3341.9,3341.6,0.29969]
[1735350459252,0.6454,3341.9,3341.8,0.29967]
[1735350459752,0.6454,3341.9,3341.7,0.29968]
[1735350459953,0.6454,3341.9,3341.8,0.29967]
[1735350460345,0.6454,3341.9,3341.7,0.29967]
[1735350460549,0.6454,3341.9,3341.8,0.29967]
[1735350461051,0.94506,3341.9,3341.6,0.29969]
[1735350461251,0.94506,3341.9,3341.7,0.29968]
[1735350462554,0.94506,3341.9,3341.6,0.29968]
[1735350463757,0.94506,3341.9,3341.6,0.29969]
[1735350464059,0.94507,3341.9,3341.6,0.29968]
[1735350464352,0.6454,3341.9,3341.5,2.29713755]
[1735350464557,0.94507,3341.9,3341.6,0.29968]
[1735350464859,0.94507,3341.9,3341.7,0.97368]
[1735350466860,0.29966,3341.9,3341.6,0.29968]
[1735350467060,1.00056,3341.9,3341.6,0.29968]
[1735350467256,0.29967,3341.8,3341.6,0.29968]
[1735350467561,1.00057,3341.9,3341.3,1.9078]
[1735350467764,0.6997,3342.0,3341.5,2.29713755]
[1735350468058,0.99935,3342.0,3341.8,0.29966]
[1735350470767,0.6997,3342.0,3341.8,0.29966]
[1735350470964,0.6997,3342.0,3341.9,0.29966]
[1735350471264,0.99935,3342.0,3341.8,0.29966]
[1735350471666,0.6997,3342.0,3341.9,0.99946]
[1735350471862,0.99935,3342.0,3341.9,0.6998]
[1735350472163,0.6997,3342.0,3341.6,0.6614]
[1735350472364,0.6997,3342.0,3341.6,1.3612]
[1735350472760,0.6997,3342.0,3341.6,1.66089]
[1735350472960,0.29968,3341.8,3341.6,1.66089]
[1735350474767,0.6997,3342.0,3341.6,1.3612]
[1735350474969,0.6997,3342.0,3341.7,0.29967]
[1735350475171,0.6997,3342.0,3341.6,1.3612]
[1735350475361,0.29967,3341.8,3341.6,1.66088]
[1735350475661,0.29967,3341.8,3341.7,0.29968]
[1735350476970,0.6997,3342.0,3341.6,1.3612]
[1735350477169,0.29966,3341.9,3341.8,0.29967]
[1735350477466,0.29966,3341.9,3341.7,0.29967]
[1735350477674,0.29967,3341.8,3341.7,0.29967]
[1735350478264,0.6997,3342.0,3341.6,1.3612]
[1735350478465,0.29966,3341.9,3341.7,0.29968]
[1735350479066,0.29967,3341.8,3341.7,0.29968]
[1735350480772,0.6997,3342.0,3341.9,0.29966]
[1735350481075,0.6997,3342.0,3341.6,3.65833755]
[1735350481378,0.29968,3341.8,3341.6,3.95801755]
[1735350481870,0.29968,3341.8,3341.6,3.65833755]
[1735350482073,0.29968,3341.8,3341.6,3.95801755]
[1735350482476,0.29968,3341.8,3341.7,0.29968]
[1735350483576,0.29966,3341.9,3341.8,0.29967]
[1735350484271,0.29968,3341.7,3341.6,3.25821755]
[1735350485369,0.6997,3342.0,3341.7,0.29968]
[1735350485569,0.29964,3342.2,3341.9,2.29713755]
[1735350485873,1.58763,3342.3,3342.2,0.29963]
[1735350486270,1.58763,3342.3,3342.0,0.6428]
[1735350486575,1.58763,3342.3,3342.1,0.29964]
[1735350486775,1.58763,3342.3,3342.0,0.6428]
[1735350486776,1.288,3342.3,3342.2,0.29963]
[1735350487578,1.58762,3342.3,3342.2,0.29963]
[1735350488071,3.2078,3342.5,3342.2,2.29713755]
[1735350488268,3.50741,3342.5,3342.4,0.29962]
[1735350488471,3.50741,3342.5,3342.3,0.99812]
[1735350489375,3.2078,3342.9,3342.4,1.202]
[1735350489574,3.2078,3342.9,3342.8,2.59671755]
[1735350489881,3.2078,3342.9,3342.7,2.59671755]
[1735350490077,3.2078,3342.9,3342.8,0.29958]
[1735350490273,3.2078,3342.9,3342.7,2.59671755]
[1735350490472,3.50737,3342.9,3342.7,2.59671755]
[1735350490671,3.2078,3342.9,3342.5,0.645]
[1735350490877,0.29961,3342.5,3342.4,3.49913755]
[1735350491077,3.50741,3342.5,3342.4,1.202]
[1735350491277,0.29964,3342.1,3342.0,2.29713755]
[1735350491878,0.29966,3341.9,3341.8,4.72877235]
[1735350492071,0.29966,3341.9,3341.7,9.3678075]
[1735350492072,1.9651,3342.4,3341.7,2.29713755]
[1735350492279,0.29966,3342.0,3341.8,0.29967]
[1735350492580,0.29966,3341.9,3341.7,2.59680755]
[1735350492976,0.29967,3341.9,3341.7,2.29713755]
[1735350493172,0.6586,3341.8,3341.7,2.29713755]
[1735350493374,0.6586,3341.8,3341.7,2.59681755]
[1735350494277,1.3165,3342.4,3341.7,2.29713755]
[1735350494476,1.3171,3342.4,3342.3,0.29962]
[1735350494780,0.74885,3343.3,3342.6,0.2996]
[1735350494781,0.29959,3342.8,3342.6,0.2996]
[1735350494970,0.29959,3342.8,3342.6,2.59673755]
[1735350495883,0.29959,3342.7,3342.6,2.29713755]
[1735350496076,0.98189,3342.7,3342.6,2.29713755]
[1735350496684,8.0185899,3342.7,3342.6,2.29713755]
[1735350497688,7.7189999,3342.7,3342.6,2.59673755]
[1735350498383,7.0366999,3342.7,3342.6,2.59673755]
[1735350500381,8.0066499,3343.2,3342.6,2.59673755]
[1735350500588,0.29956,3343.1,3342.9,2.59670755]
[1735350501187,0.29956,3343.1,3342.9,2.29713755]
[1735350501489,7.0366999,3343.2,3343.1,0.29955]
[1735350502587,3.50734,3343.3,3343.1,0.29955]
[1735350503390,3.2078,3343.3,3343.0,1.3257]
[1735350503592,3.50734,3343.3,3343.1,0.29955]
[1735350503792,3.50734,3343.3,3343.0,1.3257]
[1735350503793,3.2078,3343.3,3343.2,0.29954]
[1735350504687,3.2078,3343.3,3343.2,2.59667755]